fUST/lending_fUST_20250718
["ID","MTS","AMOUNT","RATE_DAILY","PERIOD"]
[372887821,1752793849164,-460.0,0.0001784,2]
[372887822,1752793849173,-460.0,0.0001784,2]
[372887823,1752793849183,-460.0,0.0001784,2]
[372887824,1752793849192,-1777.72,0.0001784,2]
[372887825,1752793849202,-460.0,0.0001784,2]
[372887826,1752793849211,-460.0,0.0001784,2]
[372887827,1752793849221,-460.0,0.0001784,2]
[372887828,1752793849231,-460.0,0.0001784,2]
[372887829,1752793849240,-2392.76,0.0001784,2]
[372887830,1752793849250,-649.5,0.0001784,2]
[372887831,1752793849259,-460.0,0.0001784,2]
[372887832,1752793849269,-460.0,0.00017841,2]
[372887833,1752793849280,-460.0,0.00017841,2]
[372887834,1752793849289,-2206.95,0.00017841,2]
[372887835,1752793849298,-3302.1,0.00017841,2]
[372887836,1752793849307,-460.0,0.00017841,2]
[372887837,1752793849316,-697.81,0.00017841,2]
[372887838,1752793849326,-2294.24,0.00017841,2]
[372887839,1752793849335,-6629.84,0.00017841,2]
[372887840,1752793849345,-906.14138722,0.00017861,2]
[372887841,1752793849354,-460.0,0.00017865,2]
[372887842,1752793849363,-420.0,0.00017922,2]
[372887843,1752793849373,-1439.61129952,0.00017932,2]
[372887844,1752793849383,-12607.95677342,0.00018063,2]
[372887845,1752793849392,-230.85589339,0.00018063,2]
[372887846,1752793849402,-160.0,0.00018063,2]
[372887847,1752793849412,-525.67742785,0.00018063,2]
[372887848,1752793849421,-160.0,0.00018063,2]
[372887849,1752793849430,-476.16111942,0.00018063,2]
[372887850,1752793849439,-160.0,0.00018063,2]
[372887851,1752793849449,-214.44804168,0.00018063,2]
[372887852,1752793849458,-160.0,0.00018063,2]
[372887854,1752793849467,-160.0,0.00018063,2]
[372887855,1752793849476,-839.15451687,0.00018063,2]
[372887856,1752793849485,-215.59244943,0.00018063,2]
[372887857,1752793849494,-160.0,0.00018063,2]
[372887858,1752793849504,-406.65,0.00018082,2]
[372887859,1752793849513,-460.0,0.00018082,2]
[372887860,1752793849523,-901.01,0.00018082,2]
[372887861,1752793849533,-3975.29,0.00018082,2]
[372887862,1752793849543,-460.0,0.00018082,2]
[372887863,1752793849552,-460.0,0.00018082,2]
[372887864,1752793849562,-460.0,0.00018082,2]
[372887865,1752793849571,-985.54,0.00018082,2]
[372887866,1752793849581,-1250.62,0.00018082,2]
[372887867,1752793849591,-460.0,0.00018082,2]
[372887868,1752793849600,-666.88,0.00018082,2]
[372887869,1752793849610,-460.0,0.00018082,2]
[372887870,1752793849620,-460.0,0.00018082,2]
[372887871,1752793849630,-460.0,0.00018082,2]
[372887872,1752793849639,-1072.49,0.00018082,2]
[372887873,1752793849649,-460.0,0.00018082,2]
[372887874,1752793849659,-460.0,0.00018082,2]
[372887875,1752793849669,-460.0,0.00018113,2]
[372887876,1752793849678,-460.0,0.00018113,2]
[372887877,1752793849688,-460.0,0.00018113,2]
[372887878,1752793849698,-519.69,0.00018113,2]
[372887879,1752793849707,-460.0,0.00018113,2]
[372887880,1752793849718,-2276.17,0.00018113,2]
[372887881,1752793849727,-460.0,0.00018113,2]
[372887882,1752793849738,-460.0,0.00018113,2]
[372887883,1752793849748,-460.0,0.00018113,2]
[372887884,1752793849758,-460.0,0.00018113,2]
[372887885,1752793849767,-460.0,0.00018113,2]
[372887886,1752793849779,-460.0,0.00018113,2]
[372887887,1752793849788,-460.0,0.00018113,2]
[372887888,1752793849798,-460.0,0.00018113,2]
[372887889,1752793849807,-460.0,0.00018113,2]
[372887890,1752793849817,-463.45,0.00018113,2]
[372887891,1752793849829,-460.0,0.00018113,2]
[372887892,1752793849839,-460.0,0.00018113,2]
[372887893,1752793849848,-460.0,0.00018113,2]
[372887894,1752793849859,-460.0,0.00018113,2]
[372887895,1752793849869,-460.0,0.00018113,2]
[372887896,1752793849879,-460.0,0.00018113,2]
[372887897,1752793849889,-460.0,0.00018113,2]
[372887898,1752793849901,-488.28,0.00018113,2]
[372887899,1752793849910,-460.0,0.00018113,2]
[372887900,1752793849920,-460.0,0.00018113,2]
[372887901,1752793849930,-460.0,0.00018114,2]
[372887902,1752793849939,-460.0,0.00018114,2]
[372887903,1752793849950,-460.0,0.00018114,2]
[372887904,1752793849960,-460.0,0.00018114,2]
[372887905,1752793849969,-665.27,0.00018114,2]
[372887906,1752793849979,-460.0,0.00018114,2]
[372887907,1752793849988,-460.0,0.00018114,2]
[372887908,1752793849997,-460.0,0.00018114,2]
[372887909,1752793850007,-460.0,0.00018114,2]
[372887910,1752793850017,-460.0,0.00018114,2]
[372887911,1752793850028,-207.06735334,0.00018114,2]
[372887912,1752793850037,-460.0,0.00018114,2]
[372887913,1752793850046,-460.0,0.00018114,2]
[372887914,1752793850056,-460.0,0.00018114,2]
[372887915,1752793850065,-460.0,0.00018114,2]
[372887916,1752793850074,-1777.72,0.00018114,2]
[372887917,1752793850083,-460.0,0.00018114,2]
[372887918,1752793850093,-460.0,0.00018114,2]
[372887919,1752793850102,-460.0,0.00018114,2]
[372887920,1752793850112,-2392.76,0.00018114,2]
[372887921,1752793850121,-649.5,0.00018114,2]
[372887922,1752793850130,-460.0,0.00018114,2]
[372887923,1752793850140,-460.0,0.00018115,2]
[372887924,1752793850149,-460.0,0.00018115,2]
[372887925,1752793850159,-2206.95,0.00018115,2]
[372887926,1752793850168,-3302.1,0.00018115,2]
[372887927,1752793850177,-697.81,0.00018115,2]
[372887928,1752793850187,-2294.24,0.00018115,2]
[372887929,1752793850196,-6629.84,0.00018115,2]
[372887930,1752793850205,-151.0,0.00018116,2]
[372887931,1752793850215,-353.10513331,0.00018139,2]
[372887932,1752793850225,-500.0,0.00018316,2]
[372887933,1752793850234,-2000.0,0.00018316,2]
[372887934,1752793850244,-901.01,0.00018356,2]
[372887935,1752793850255,-3975.29,0.00018356,2]
[372887936,1752793850266,-460.0,0.00018356,2]
[372887937,1752793850276,-460.0,0.00018356,2]
[372887938,1752793850287,-460.0,0.00018356,2]
[372887939,1752793850296,-985.54,0.00018356,2]
[372887940,1752793850306,-1250.62,0.00018356,2]
[372887941,1752793850316,-460.0,0.00018356,2]
[372887942,1752793850326,-666.88,0.00018356,2]
[372887943,1752793850335,-460.0,0.00018356,2]
[372887944,1752793850344,-460.0,0.00018356,2]
[372887945,1752793850353,-460.0,0.00018356,2]
[372887946,1752793850362,-1072.49,0.00018356,2]
[372887947,1752793850371,-460.0,0.00018356,2]
[372887948,1752793850380,-460.0,0.00018356,2]
[372887949,1752793850389,-460.0,0.00018387,2]
[372887950,1752793850398,-553.08342174,0.00018387,2]
[372887951,1752793850407,-519.69,0.00018387,2]
[372887952,1752793850417,-460.0,0.00018387,2]
[372887953,1752793850426,-2276.17,0.00018387,2]
[372887954,1752793850435,-460.0,0.00018387,2]
[372887955,1752793850444,-208.69,0.00018387,2]
[372887956,1752793850453,-460.0,0.00018387,2]
[372887957,1752793850463,-460.0,0.00018387,2]
[372887958,1752793850472,-460.0,0.00018387,2]
[372887959,1752793850482,-460.0,0.00018387,2]
[372887960,1752793850491,-460.0,0.00018387,2]
[372887961,1752793850500,-460.0,0.00018387,2]
[372887962,1752793850509,-460.0,0.00018387,2]
[372887963,1752793850518,-463.45,0.00018387,2]
[372887964,1752793850528,-460.0,0.00018387,2]
[372887965,1752793850537,-460.0,0.00018387,2]
[372887966,1752793850546,-514.91494386,0.00018387,2]
[372887967,1752793850555,-460.0,0.00018387,2]
[372887968,1752793850564,-460.0,0.00018387,2]
[372887969,1752793850573,-460.0,0.00018387,2]
[372887970,1752793850582,-460.0,0.00018387,2]
[372887971,1752793850682,-488.28,0.00018387,2]
[372887972,1752793850692,-460.0,0.00018387,2]
[372887973,1752793850702,-460.0,0.00018388,2]
[372887974,1752793850712,-460.0,0.00018388,2]
[372887975,1752793850722,-460.0,0.00018388,2]
[372887976,1752793850731,-460.0,0.00018388,2]
[372887977,1752793850741,-665.27,0.00018388,2]
[372887978,1752793850751,-460.0,0.00018388,2]
[372887979,1752793850760,-460.0,0.00018388,2]
[372887980,1752793850770,-460.0,0.00018388,2]
[372887981,1752793850780,-460.0,0.00018388,2]
[372887982,1752793850790,-460.0,0.00018388,2]
[372887983,1752793850800,-460.0,0.00018388,2]
[372887984,1752793850810,-460.0,0.00018388,2]
[372887985,1752793850825,-460.0,0.00018388,2]
[372887986,1752793850834,-460.0,0.00018388,2]
[372887987,1752793850844,-1777.72,0.00018388,2]
[372887988,1752793850853,-460.0,0.00018388,2]
[372887989,1752793850863,-460.0,0.00018388,2]
[372887990,1752793850872,-460.0,0.00018388,2]
[372887991,1752793850882,-2392.76,0.00018388,2]
[372887992,1752793850893,-649.5,0.00018388,2]
[372887993,1752793850903,-460.0,0.00018388,2]
[372887994,1752793850912,-460.0,0.00018389,2]
[372887995,1752793850920,-460.0,0.00018389,2]
[372887996,1752793850928,-2206.95,0.00018389,2]
[372887997,1752793850937,-3302.1,0.00018389,2]
[372887998,1752793850945,-697.81,0.00018389,2]
[372887999,1752793850955,-2294.24,0.00018389,2]
[372888000,1752793850964,-6629.84,0.00018389,2]
[372888001,1752793850974,-906.14138722,0.00018486,2]
[372888002,1752793850983,-901.01,0.0001863,2]
[372888003,1752793850992,-3975.29,0.0001863,2]
[372888004,1752793851002,-460.0,0.0001863,2]
[372888005,1752793851011,-460.0,0.0001863,2]
[372888006,1752793851021,-460.0,0.0001863,2]
[372888007,1752793851033,-985.54,0.0001863,2]
[372888008,1752793851042,-1250.62,0.0001863,2]
[372888009,1752793851052,-460.0,0.0001863,2]
[372888010,1752793851062,-666.88,0.0001863,2]
[372888011,1752793851071,-460.0,0.0001863,2]
[372888012,1752793851080,-460.0,0.0001863,2]
[372888013,1752793851089,-460.0,0.0001863,2]
[372888014,1752793851099,-1072.49,0.0001863,2]
[372888015,1752793851108,-460.0,0.0001863,2]
[372888016,1752793851118,-460.0,0.0001863,2]
[372888017,1752793851127,-460.0,0.00018661,2]
[372888018,1752793851136,-519.69,0.00018661,2]
[372888019,1752793851145,-460.0,0.00018661,2]
[372888020,1752793851155,-2276.17,0.00018661,2]
[372888021,1752793851164,-460.0,0.00018661,2]
[372888022,1752793851173,-460.0,0.00018661,2]
[372888023,1752793851183,-168.05,0.00018661,2]
[372888024,1752793851192,-460.0,0.00018661,2]
[372888025,1752793851201,-460.0,0.00018661,2]
[372888026,1752793851211,-460.0,0.00018661,2]
[372888027,1752793851220,-460.0,0.00018661,2]
[372888028,1752793851229,-460.0,0.00018661,2]
[372888029,1752793851238,-463.45,0.00018661,2]
[372888030,1752793851248,-460.0,0.00018661,2]
[372888031,1752793851257,-460.0,0.00018661,2]
[372888032,1752793851267,-460.0,0.00018661,2]
[372888033,1752793851276,-460.0,0.00018661,2]
[372888034,1752793851287,-460.0,0.00018661,2]
[372888035,1752793851297,-460.0,0.00018661,2]
[372888036,1752793851306,-488.28,0.00018661,2]
[372888037,1752793851316,-460.0,0.00018661,2]
[372888038,1752793851326,-460.0,0.00018662,2]
[372888039,1752793851335,-460.0,0.00018662,2]
[372888040,1752793851345,-460.0,0.00018662,2]
[372888041,1752793851354,-460.0,0.00018662,2]
[372888042,1752793851363,-665.27,0.00018662,2]
[372888043,1752793851373,-460.0,0.00018662,2]
[372888044,1752793851382,-460.0,0.00018662,2]
[372888045,1752793851392,-460.0,0.00018662,2]
[372888046,1752793851401,-460.0,0.00018662,2]
[372888047,1752793851411,-460.0,0.00018662,2]
[372888048,1752793851420,-460.0,0.00018662,2]
[372888049,1752793851429,-460.0,0.00018662,2]
[372888050,1752793851439,-460.0,0.00018662,2]
[372888051,1752793851448,-460.0,0.00018662,2]
[372888052,1752793851457,-1777.72,0.00018662,2]
[372888053,1752793851467,-460.0,0.00018662,2]
[372888054,1752793851477,-460.0,0.00018662,2]
[372888055,1752793851486,-460.0,0.00018662,2]
[372888056,1752793851496,-2392.76,0.00018662,2]
[372888057,1752793851505,-649.5,0.00018662,2]
[372888058,1752793851514,-460.0,0.00018662,2]
[372888059,1752793851524,-460.0,0.00018663,2]
[372888060,1752793851534,-460.0,0.00018663,2]
[372888061,1752793851544,-2206.95,0.00018663,2]
[372888062,1752793851553,-3302.1,0.00018663,2]
[372888063,1752793851562,-697.81,0.00018663,2]
[372888064,1752793851572,-2294.24,0.00018663,2]
[372888065,1752793851582,-6629.84,0.00018663,2]
[372888066,1752793851592,-151.0,0.00018687,2]
[372888067,1752793851601,-151.0,0.00018687,2]
[372888068,1752793851611,-151.0,0.00018687,2]
[372888069,1752793851620,-1000.0,0.00018864,2]
[372888070,1752793851630,-212.17077038,0.000189,2]
[372888071,1752793851639,-901.01,0.00018904,2]
[372888072,1752793851648,-3975.29,0.00018904,2]
[372888073,1752793851658,-460.0,0.00018904,2]
[372888074,1752793851667,-460.0,0.00018904,2]
[372888075,1752793851677,-460.0,0.00018904,2]
[372888076,1752793851687,-985.54,0.00018904,2]
[372888077,1752793851696,-1250.62,0.00018904,2]
[372888078,1752793851705,-460.0,0.00018904,2]
[372888079,1752793851715,-666.88,0.00018904,2]
[372888080,1752793851725,-460.0,0.00018904,2]
[372888081,1752793851734,-460.0,0.00018904,2]
[372888082,1752793851744,-460.0,0.00018904,2]
[372888083,1752793851755,-1072.49,0.00018904,2]
[372888084,1752793851764,-460.0,0.00018904,2]
[372888085,1752793851774,-460.0,0.00018904,2]
[372888086,1752793851785,-460.0,0.00018935,2]
[372888087,1752793851794,-519.69,0.00018935,2]
[372888088,1752793851803,-460.0,0.00018935,2]
[372888089,1752793851813,-2276.17,0.00018935,2]
[372888090,1752793851827,-460.0,0.00018935,2]
[372888091,1752793851837,-460.0,0.00018935,2]
[372888092,1752793851846,-460.0,0.00018935,2]
[372888093,1752793851855,-460.0,0.00018935,2]
[372888094,1752793851866,-216.68,0.00018935,2]
[372888095,1752793851875,-460.0,0.00018935,2]
[372888096,1752793851885,-463.45,0.00018935,2]
[372888097,1752793851894,-460.0,0.00018935,2]
[372888098,1752793851905,-460.0,0.00018935,2]
[372888099,1752793851915,-460.0,0.00018935,2]
[372888100,1752793851924,-460.0,0.00018935,2]
[372888101,1752793851934,-460.0,0.00018935,2]
[372888102,1752793851943,-460.0,0.00018935,2]
[372888103,1752793851953,-488.28,0.00018935,2]
[372888104,1752793851962,-460.0,0.00018935,2]
[372888105,1752793851971,-460.0,0.00018936,2]
[372888106,1752793851980,-460.0,0.00018936,2]
[372888107,1752793851990,-460.0,0.00018936,2]
[372888108,1752793851999,-460.0,0.00018936,2]
[372888109,1752793852009,-665.27,0.00018936,2]
[372888110,1752793852019,-460.0,0.00018936,2]
[372888111,1752793852030,-460.0,0.00018936,2]
[372888112,1752793852040,-460.0,0.00018936,2]
[372888113,1752793852049,-460.0,0.00018936,2]
[372888114,1752793852058,-460.0,0.00018936,2]
[372888115,1752793852068,-460.0,0.00018936,2]
[372888116,1752793852078,-480.58,0.00018936,2]
[372888117,1752793852088,-460.0,0.00018936,2]
[372888118,1752793852098,-460.0,0.00018936,2]
[372888119,1752793852107,-1777.72,0.00018936,2]
[372888120,1752793852116,-460.0,0.00018936,2]
[372888121,1752793852125,-460.0,0.00018936,2]
[372888122,1752793852135,-447.25,0.00018936,2]
[372888123,1752793852144,-2392.76,0.00018936,2]
[372888124,1752793852153,-649.5,0.00018936,2]
[372888125,1752793852163,-460.0,0.00018936,2]
[372888126,1752793852172,-460.0,0.00018937,2]
[372888127,1752793852182,-361.0945519,0.00018937,2]
[372888128,1752793852191,-2206.95,0.00018937,2]
[372888129,1752793852201,-3302.1,0.00018937,2]
[372888130,1752793852211,-697.81,0.00018937,2]
[372888131,1752793852220,-2294.24,0.00018937,2]
[372888132,1752793852230,-6629.84,0.00018937,2]
[372888133,1752793852240,-151.0,0.00018965,2]
[372888134,1752793852250,-906.14138722,0.0001911,2]
[372888135,1752793852260,-519.41589215,0.00019178,7]
[372888136,1752793852269,-901.01,0.00019178,2]
[372888137,1752793852281,-3975.29,0.00019178,2]
[372888138,1752793852290,-460.0,0.00019178,2]
[372888139,1752793852300,-565.35,0.00019178,2]
[372888140,1752793852309,-460.0,0.00019178,2]
[372888141,1752793852319,-985.54,0.00019178,2]
[372888142,1752793852329,-1250.62,0.00019178,2]
[372888143,1752793852338,-460.0,0.00019178,2]
[372888144,1752793852347,-666.88,0.00019178,2]
[372888145,1752793852357,-460.0,0.00019178,2]
[372888146,1752793852366,-460.0,0.00019178,2]
[372888147,1752793852375,-460.0,0.00019178,2]
[372888148,1752793852384,-1072.49,0.00019178,2]
[372888149,1752793852394,-460.0,0.00019178,2]
[372888150,1752793852403,-460.0,0.00019178,2]
[372888151,1752793852412,-666.0,0.00019178,2]
[372888152,1752793852422,-176.970775,0.00019178,2]
[372888153,1752793852431,-460.0,0.00019209,2]
[372888154,1752793852441,-519.69,0.00019209,2]
[372888155,1752793852450,-460.0,0.00019209,2]
[372888156,1752793852460,-2276.17,0.00019209,2]
[372888157,1752793852470,-460.0,0.00019209,2]
[372888158,1752793852479,-608.84089523,0.00019209,2]
[372888159,1752793852489,-460.0,0.00019209,2]
[372888160,1752793852499,-460.0,0.00019209,2]
[372888161,1752793852508,-460.0,0.00019209,2]
[372888162,1752793852518,-463.45,0.00019209,2]
[372888163,1752793852527,-460.0,0.00019209,2]
[372888164,1752793852539,-460.0,0.00019209,2]
[372888165,1752793852548,-460.0,0.00019209,2]
[372888166,1752793852558,-460.0,0.00019209,2]
[372888167,1752793852567,-460.0,0.00019209,2]
[372888168,1752793852577,-460.0,0.00019209,2]
[372888169,1752793852587,-488.28,0.00019209,2]
[372888170,1752793852596,-460.0,0.00019209,2]
[372888171,1752793852605,-460.0,0.0001921,2]
[372888172,1752793852615,-460.0,0.0001921,2]
[372888173,1752793852624,-460.0,0.0001921,2]
[372888174,1752793852633,-180.02733084,0.0001921,2]
[372888175,1752793852643,-665.27,0.0001921,2]
[372888176,1752793852652,-460.0,0.0001921,2]
[372888177,1752793852662,-460.0,0.0001921,2]
[372888178,1752793852671,-460.0,0.0001921,2]
[372888179,1752793852680,-460.0,0.0001921,2]
[372888180,1752793852690,-460.0,0.0001921,2]
[372888181,1752793852700,-460.0,0.0001921,2]
[372888182,1752793852709,-460.0,0.0001921,2]
[372888183,1752793852719,-460.0,0.0001921,2]
[372888184,1752793852728,-1777.72,0.0001921,2]
[372888185,1752793852738,-460.0,0.0001921,2]
[372888186,1752793852747,-460.0,0.0001921,2]
[372888187,1752793852757,-2392.76,0.0001921,2]
[372888188,1752793852766,-649.5,0.0001921,2]
[372888189,1752793852776,-460.0,0.0001921,2]
[372888190,1752793852787,-460.0,0.00019211,2]
[372888191,1752793852797,-2206.95,0.00019211,2]
[372888192,1752793852806,-3302.1,0.00019211,2]
[372888193,1752793852904,-697.81,0.00019211,2]
[372888194,1752793852915,-2294.24,0.00019211,2]
[372888195,1752793852924,-6629.84,0.00019211,2]
[372888196,1752793852934,-36161.96721081,0.00019329,2]
[372888197,1752793852944,-200.84977966,0.00019451,2]
[372888198,1752793852954,-901.01,0.00019452,2]
[372888199,1752793852963,-3975.29,0.00019452,2]
[372888200,1752793852973,-460.0,0.00019452,2]
[372888201,1752793852983,-460.0,0.00019452,2]
[372888202,1752793852992,-985.54,0.00019452,2]
[372888203,1752793853001,-1250.62,0.00019452,2]
[372888204,1752793853011,-460.0,0.00019452,2]
[372888205,1752793853021,-666.88,0.00019452,2]
[372888206,1752793853031,-460.0,0.00019452,2]
[372888207,1752793853041,-460.0,0.00019452,2]
[372888208,1752793853051,-460.0,0.00019452,2]
[372888209,1752793853060,-1072.49,0.00019452,2]
[372888210,1752793853070,-460.0,0.00019452,2]
[372888211,1752793853080,-473.62,0.00019452,2]
[372888212,1752793853089,-284.3208167,0.00019456,2]
[372888213,1752793853099,-460.0,0.00019483,2]
[372888214,1752793853108,-519.69,0.00019483,2]
[372888215,1752793853118,-460.0,0.00019483,2]
[372888216,1752793853127,-2276.17,0.00019483,2]
[372888217,1752793853137,-460.0,0.00019483,2]
[372888218,1752793853146,-364.60835575,0.00019483,2]
[372888219,1752793853155,-460.0,0.00019483,2]
[372888220,1752793853165,-460.0,0.00019483,2]
[372888221,1752793853175,-463.45,0.00019483,2]
[372888222,1752793853185,-460.0,0.00019483,2]
[372888223,1752793853194,-460.0,0.00019483,2]
[372888224,1752793853203,-257.71,0.00019483,2]
[372888225,1752793853212,-460.0,0.00019483,2]
[372888226,1752793853222,-460.0,0.00019483,2]
[372888227,1752793853231,-220.35,0.00019483,2]
[372888228,1752793853241,-488.28,0.00019483,2]
[372888229,1752793853250,-460.0,0.00019483,2]
[372888230,1752793853260,-315.07566756,0.00019484,2]
[372888231,1752793853269,-460.0,0.00019484,2]
[372888232,1752793853279,-460.0,0.00019484,2]
[372888233,1752793853291,-665.27,0.00019484,2]
[372888234,1752793853301,-460.0,0.00019484,2]
[372888235,1752793853311,-460.0,0.00019484,2]
[372888236,1752793853321,-496.99364786,0.00019484,2]
[372888237,1752793853330,-460.0,0.00019484,2]
[372888238,1752793853340,-460.0,0.00019484,2]
[372888239,1752793853349,-1777.72,0.00019484,2]
[372888240,1752793853360,-460.0,0.00019484,2]
[372888241,1752793853369,-460.0,0.00019484,2]
[372888242,1752793853379,-2392.76,0.00019484,2]
[372888243,1752793853389,-649.5,0.00019484,2]
[372888244,1752793853399,-460.0,0.00019484,2]
[372888245,1752793853408,-460.0,0.00019485,2]
[372888246,1752793853418,-2206.95,0.00019485,2]
[372888247,1752793853427,-3302.1,0.00019485,2]
[372888248,1752793853436,-697.81,0.00019485,2]
[372888249,1752793853446,-2294.24,0.00019485,2]
[372888250,1752793853456,-6629.84,0.00019485,2]
[372888251,1752793853465,-587.0,0.00019587,2]
[372888252,1752793853474,-901.01,0.00019726,2]
[372888253,1752793853483,-3975.29,0.00019726,2]
[372888254,1752793853493,-460.0,0.00019726,2]
[372888255,1752793853502,-460.0,0.00019726,2]
[372888256,1752793853512,-985.54,0.00019726,2]
[372888257,1752793853521,-1250.62,0.00019726,2]
[372888258,1752793853533,-460.0,0.00019726,2]
[372888259,1752793853542,-666.88,0.00019726,2]
[372888260,1752793853552,-460.0,0.00019726,2]
[372888261,1752793853561,-460.0,0.00019726,2]
[372888262,1752793853571,-460.0,0.00019726,2]
[372888263,1752793853580,-1072.49,0.00019726,2]
[372888264,1752793853589,-460.0,0.00019726,2]
[372888265,1752793853599,-2276.17,0.00019756,2]
[372888266,1752793853608,-502.6,0.00019757,2]
[372888267,1752793853617,-519.69,0.00019757,2]
[372888268,1752793853627,-460.0,0.00019757,2]
[372888269,1752793853637,-460.0,0.00019757,2]
[372888270,1752793853646,-460.0,0.00019757,2]
[372888271,1752793853656,-460.0,0.00019757,2]
[372888272,1752793853665,-463.45,0.00019757,2]
[372888273,1752793853675,-460.0,0.00019757,2]
[372888274,1752793853684,-460.0,0.00019757,2]
[372888275,1752793853694,-460.0,0.00019757,2]
[372888276,1752793853703,-460.0,0.00019757,2]
[372888277,1752793853713,-488.28,0.00019757,2]
[372888278,1752793853723,-460.0,0.00019757,2]
[372888279,1752793853733,-460.0,0.00019758,2]
[372888280,1752793853742,-460.0,0.00019758,2]
[372888281,1752793853752,-665.27,0.00019758,2]
[372888282,1752793853761,-460.0,0.00019758,2]
[372888283,1752793853771,-460.0,0.00019758,2]
[372888284,1752793853784,-460.0,0.00019758,2]
[372888285,1752793853793,-460.0,0.00019758,2]
[372888286,1752793853802,-1777.72,0.00019758,2]
[372888287,1752793853812,-460.0,0.00019758,2]
[372888288,1752793853824,-460.0,0.00019758,2]
[372888289,1752793853834,-2392.76,0.00019758,2]
[372888290,1752793853843,-649.5,0.00019758,2]
[372888291,1752793853853,-210.04,0.00019758,2]
[372888292,1752793853863,-460.0,0.00019759,2]
[372888293,1752793853874,-2206.95,0.00019759,2]
[372888294,1752793853885,-3302.1,0.00019759,2]
[372888295,1752793853895,-697.81,0.00019759,2]
[372888296,1752793853904,-2294.24,0.00019759,2]
[372888297,1752793853914,-6629.84,0.00019759,2]
[372888298,1752793853924,-901.01,0.0002,2]
[372888299,1752793853933,-3975.29,0.0002,2]
[372888300,1752793853944,-460.0,0.0002,2]
[372888301,1752793853955,-460.0,0.0002,2]
[372888302,1752793853965,-985.54,0.0002,2]
[372888303,1752793853975,-1250.62,0.0002,2]
[372888304,1752793853985,-460.0,0.0002,2]
[372888305,1752793853994,-666.88,0.0002,2]
[372888306,1752793854004,-460.0,0.0002,2]
[372888307,1752793854013,-246.6,0.0002,2]
[372888308,1752793854023,-460.0,0.0002,2]
[372888309,1752793854035,-1072.49,0.0002,2]
[372888310,1752793854045,-460.0,0.0002,2]
[372888311,1752793854055,-4000.0,0.0002,4]
[372888312,1752793854064,-2276.17,0.0002003,2]
[372888313,1752793854074,-519.69,0.00020031,2]
[372888314,1752793854083,-608.7,0.00020031,2]
[372888315,1752793854093,-460.0,0.00020031,2]
[372888316,1752793854103,-460.0,0.00020031,2]
[372888317,1752793854113,-530.65,0.00020031,2]
[372888318,1752793854122,-463.45,0.00020031,2]
[372888319,1752793854132,-460.0,0.00020031,2]
[372888320,1752793854141,-460.0,0.00020031,2]
[372888321,1752793854151,-299.84430456,0.00020031,2]